bitfinex/quotes_ETHUSD_20220311
["timestamp","ask_amount","ask_price","bid_price","bid_amount"]
[1646964141240,4.63417335,2569.4,2569.2,1.00282857]
[1646964141641,4.63066203,2569.4,2569.2,1.00282857]
[1646964141840,4.63393604,2569.4,2569.2,1.00282857]
[1646964142439,2.68762604,2569.4,2569.3,3.5]
[1646964142639,2.68762604,2569.4,2569.2,39.68565782]
[1646964142640,1.71443604,2569.4,2569.2,39.68565782]
[1646964142839,1.71116203,2569.4,2569.2,39.68565782]
[1646964143043,1.71116203,2569.4,2569.2,40.68565782]
[1646964143439,1.71116203,2569.4,2569.3,4.61099808]
[1646964143680,1.71116203,2569.4,2569.3,1.11099808]
[1646964143881,1.71116203,2569.4,2569.3,2.11099808]
[1646964144081,2.68411203,2569.4,2569.3,2.11099808]
[1646964144281,2.68411203,2569.4,2569.3,1.11099808]
[1646964145281,2.68411203,2569.4,2569.3,4.61099808]
[1646964145482,1.71116203,2569.4,2569.3,1.11099808]
[1646964145685,1.71116203,2569.4,2569.3,2.11099808]
[1646964145883,1.71116203,2569.4,2569.3,3.11099808]
[1646964146082,1.71116203,2569.4,2569.3,2.11099808]
[1646964146291,1.71116203,2569.4,2569.3,5.61099808]
[1646964146487,1.71116203,2569.4,2569.3,4.08384808]
[1646964147287,1.71116203,2569.4,2569.3,7.58384808]
[1646964147530,1.71116203,2569.4,2569.3,8.58384808]
[1646964147732,1.71116203,2569.4,2569.3,9.58384808]
[1646964147931,1.71116203,2569.4,2569.3,6.08384808]
[1646964148130,1.71116203,2569.4,2569.3,5.11099808]
[1646964148933,1.71116203,2569.4,2569.3,9.58384808]
[1646964149330,0.97638972,2569.5,2569.4,3.7111]
[1646964149535,0.00330472,2569.5,2569.4,8.29612506]
[1646964149732,0.00330472,2569.5,2569.4,9.59612506]
[1646964150132,0.030458,2570.1,2569.5,0.9727]
[1646964150133,0.01724216,2570.1,2569.5,0.9727]
[1646964150333,0.0033047,2569.6,2569.5,0.9727]
[1646964150534,0.0033047,2569.6,2569.4,3.24539]
[1646964150733,0.0033047,2569.6,2569.5,1.0]
[1646964150938,0.0033047,2569.6,2569.5,0.9888]
[1646964151180,0.19723507,2569.6,2569.3,0.99722857]
[1646964151386,1.9464,2569.5,2569.3,0.99722857]
[1646964151786,0.24001135,2569.4,2569.3,0.99722857]
[1646964153590,0.24001135,2569.4,2568.9,0.97312]
[1646964153591,0.9731,2569.1,2568.9,0.97312]
[1646964153789,0.24001135,2569.4,2568.9,1.27312]
[1646964153790,1.9461328,2569.3,2568.9,1.27312]
[1646964153988,1.9461328,2569.3,2568.9,1.27524938]
[1646964153989,0.05107812,2569.2,2568.9,1.27524938]
[1646964155033,1.02414812,2569.2,2568.9,1.27312]
[1646964155236,1.99721452,2569.2,2568.9,1.27524938]
[1646964155436,1.99721452,2569.2,2569.0,0.9856]
[1646964157041,1.99721452,2569.2,2569.0,0.98912436]
[1646964161083,1.99721452,2569.2,2569.0,0.99028559]
[1646964161292,1.99721452,2569.2,2569.0,0.00468559]
[1646964161488,1.99721452,2569.2,2569.1,0.9856]
[1646964162538,1.99721452,2569.2,2569.0,0.30468559]
[1646964162941,1.99721452,2569.2,2569.0,0.00468559]
[1646964163139,1.99721452,2569.2,2568.9,0.3]
[1646964163140,0.97323,2569.0,2568.9,0.3]
[1646964163339,1.02261702,2568.8,2568.4,0.9968]
[1646964163741,1.02261702,2568.8,2568.5,0.9856]
[1646964163943,1.02261702,2568.8,2568.7,1.0]
[1646964166986,1.02261702,2568.8,2568.7,1.9856]
[1646964168691,2.7718468,2568.8,2568.7,1.9856]
[1646964168889,2.7718468,2568.8,2568.6,0.00260324]
[1646964169093,1.60466033,2568.7,2568.6,0.00260324]
[1646964169290,1.60466033,2568.7,2568.4,0.9968]
[1646964169291,0.97349,2568.6,2568.4,0.9968]
[1646964169695,0.9733878,2568.5,2568.4,0.9968]
[1646964170557,0.9733878,2568.5,2568.3,0.9856]
[1646964170758,0.9733878,2568.5,2568.3,3.26147355]
[1646964171260,0.9733878,2568.5,2568.3,3.28820355]
[1646964171462,0.9733878,2568.5,2568.3,1.28820355]
[1646964171665,0.9733878,2568.5,2568.3,3.2824]
[1646964171860,0.9733878,2568.5,2568.3,2.2824]
[1646964172062,0.9733878,2568.5,2568.3,2.2847172]
[1646964172861,0.9733878,2568.5,2568.3,1.2968]
[1646964173260,0.9733878,2568.5,2568.3,1.2991172]
[1646964174083,0.9733878,2568.5,2568.3,1.2968]
[1646964174287,0.9733878,2568.5,2568.3,1.2991172]
[1646964174683,0.9733878,2568.5,2568.3,2.2847172]
[1646964175284,0.9733878,2568.5,2568.3,1.2856]
[1646964175486,0.9733878,2568.5,2568.3,1.28768223]
[1646964176489,0.9733878,2568.5,2568.3,1.2856]
[1646964176892,0.9733878,2568.5,2568.3,1.28768223]
[1646964177761,0.9733878,2568.5,2568.3,1.2856]
[1646964177962,0.9733878,2568.5,2568.3,1.28768223]
[1646964178762,1.02697865,2568.5,2568.3,1.28768223]
[1646964178963,1.02697865,2568.5,2568.3,1.2856]
[1646964179162,1.02697865,2568.5,2568.3,1.2877351]
[1646964180164,1.02697865,2568.5,2568.3,1.2856]
[1646964180364,1.02697865,2568.5,2568.3,1.2877351]
[1646964181394,1.02697865,2568.5,2568.3,1.2856]
[1646964181590,1.02697865,2568.5,2568.3,1.2877351]
[1646964182591,1.02697865,2568.5,2568.3,1.2856]
[1646964182791,1.02697865,2568.5,2568.3,1.2882036]
[1646964182991,1.02697865,2568.5,2568.3,0.3026036]
[1646964183192,1.02697865,2568.5,2568.3,2.0910036]
[1646964183391,0.9733878,2568.5,2568.3,2.0910036]
[1646964183597,0.96356767,2568.5,2568.3,2.0910036]
[1646964183793,0.96356767,2568.5,2568.3,2.0884]
[1646964183994,0.96356767,2568.5,2568.3,2.0910036]
[1646964184394,0.96356767,2568.5,2568.3,3.0642336]
[1646964184595,0.96356767,2568.5,2568.3,4.0642336]
[1646964184937,0.96356767,2568.5,2568.3,4.06163]
[1646964185138,0.96356767,2568.5,2568.3,4.0642336]
[1646964186137,0.96356767,2568.5,2568.3,4.06163]
[1646964186340,0.96356767,2568.5,2568.3,4.0639472]
[1646964187240,0.96356767,2568.5,2568.3,4.06163]
[1646964187644,0.96356767,2568.5,2568.3,3.0907172]
[1646964187845,0.96356767,2568.5,2568.3,2.0907172]
[1646964188044,0.96356767,2568.5,2568.3,3.0907172]
[1646964188343,0.96356767,2568.5,2568.3,2.0907172]
[1646964188544,0.96356767,2568.5,2568.3,3.0884]
[1646964188787,0.96356767,2568.5,2568.3,2.0907172]
[1646964188988,0.96356767,2568.5,2568.3,3.0907172]
[1646964189388,0.96356767,2568.5,2568.3,2.0907172]
[1646964189687,0.96356767,2568.5,2568.3,3.0884]
[1646964189888,0.96356767,2568.5,2568.3,3.09048223]
[1646964190090,0.96356767,2568.5,2568.3,2.09048223]
[1646964190891,0.96356767,2568.5,2568.3,2.0884]
[1646964191293,0.96356767,2568.5,2568.3,2.09048223]
[1646964192092,0.96356767,2568.5,2568.3,2.0884]
[1646964192292,0.96356767,2568.5,2568.3,2.09048223]
[1646964193338,0.96356767,2568.5,2568.3,2.0884]
[1646964193538,0.96356767,2568.5,2568.3,2.0905351]
[1646964194437,0.96356767,2568.5,2568.3,2.0884]
[1646964194937,0.96356767,2568.5,2568.3,2.0905351]
[1646964195638,0.96356767,2568.5,2568.3,2.0884]
[1646964196039,0.96356767,2568.5,2568.3,2.0905351]
[1646964196889,0.96356767,2568.5,2568.3,2.0884]
[1646964197090,0.96356767,2568.5,2568.3,2.0905232]
[1646964198096,0.96356767,2568.5,2568.3,2.0884]
[1646964198291,0.05762862,2568.4,2568.3,1.1049232]
[1646964198490,0.05762862,2568.4,2568.3,0.3021232]
[1646964198690,0.05762862,2568.4,2568.3,0.0021232]
[1646964198891,0.05762862,2568.4,2568.3,0.3021232]
[1646964199092,0.05762862,2568.4,2568.3,0.0021232]
[1646964199292,0.97336,2568.3,2568.1,25.76083223]
[1646964199692,2.96469004,2569.2,2568.3,3.7]
[1646964199941,0.0033036,2569.3,2568.5,0.08764894]
[1646964200239,7.33,2568.9,2568.8,0.07757425]
[1646964200439,7.33,2568.9,2568.8,3.57757425]
[1646964200640,7.33,2568.9,2568.8,1.02974481]
[1646964201043,7.33,2568.9,2568.8,2.01534481]
[1646964201245,7.3806508,2568.9,2568.8,2.01534481]
[1646964201444,7.3806508,2568.9,2568.8,0.9856]
[1646964202143,12.0516508,2568.9,2568.7,0.0021255]
[1646964202345,1.22366623,2568.8,2568.7,0.0021255]
[1646964202945,1.22366623,2568.8,2568.4,0.9968]
[1646964202946,6.3281665,2568.8,2568.4,0.9968]
[1646964203247,1.22757529,2568.5,2568.4,0.9968]
[1646964203704,4.72757529,2568.5,2568.4,0.86040672]
[1646964204001,7.43586628,2568.5,2568.4,0.86040672]
[1646964204202,8.71451558,2568.5,2568.4,0.86040672]
[1646964204704,1.171,2568.4,2568.3,0.00212523]
[1646964204904,4.671,2568.4,2568.3,0.00212523]
[1646964205101,4.86493037,2568.4,2568.3,0.00212523]
[1646964205303,4.86493037,2568.4,2567.8,0.9856]
[1646964205304,9.47802479,2568.4,2567.8,0.9856]
[1646964205503,0.05558999,2568.1,2567.4,0.86]
[1646964205705,0.05326252,2567.9,2567.4,0.86]
[1646964206006,0.05001679,2567.7,2567.4,0.86]
[1646964206403,1.171,2567.6,2567.4,0.86]
[1646964206604,4.671,2567.5,2567.4,0.60022098]
[1646964206803,4.671,2567.5,2566.7,0.3891]
[1646964206804,1.36493037,2567.5,2566.7,1.3891]
[1646964207004,1.36493037,2567.5,2566.9,0.9856]
[1646964207005,0.05706213,2567.4,2566.9,0.9856]
[1646964207846,0.05706213,2567.4,2566.9,2.03209346]
[1646964208048,1.22806213,2567.4,2566.9,2.33209346]
[1646964208255,1.171,2567.2,2567.0,60.96088939]
[1646964208660,0.97359,2567.8,2567.2,0.08262085]
[1646964208854,0.05657235,2568.1,2567.3,0.07999408]
[1646964209054,1.1775,2568.3,2568.0,1.0]
[1646964209258,1.1775,2568.3,2568.0,0.97338]
[1646964209259,0.97342,2568.3,2568.0,0.97338]
[1646964210057,0.97342,2568.3,2568.1,0.9856]
[1646964210359,8.3033519,2568.2,2568.1,0.9856]
[1646964210957,9.2767519,2568.2,2568.1,0.9856]
[1646964211790,11.19488158,2568.2,2568.1,0.9856]
[1646964213392,11.19488158,2568.2,2568.0,0.00212032]
[1646964213592,3.5,2568.1,2568.0,0.00212032]
[1646964213801,4.93583,2568.1,2567.3,1.9856]
[1646964213997,0.9739237,2568.0,2567.3,1.0]
[1646964214198,3.5,2567.9,2567.3,1.0]
[1646964214397,8.3694931,2567.9,2567.2,1.0]
[1646964214798,4.8694931,2567.9,2567.2,1.0]
[1646964215048,0.9739,2567.8,2567.3,0.9856]
[1646964215346,0.9739,2567.8,2567.4,0.00212202]
[1646964215745,5.4477515,2567.8,2567.4,0.00212202]
[1646964216152,5.4477515,2567.8,2567.2,1.0]
[1646964216354,5.4477515,2567.8,2567.5,0.00212198]
[1646964216552,1.9477515,2567.8,2567.5,0.00212198]
[1646964217450,1.9477515,2567.8,2567.3,0.3]
[1646964217651,1.9477515,2567.8,2567.5,1.98772194]
[1646964217851,1.9477515,2567.8,2567.5,0.98772194]
[1646964218051,1.9477515,2567.8,2567.5,1.28772194]
[1646964218250,1.9477515,2567.8,2567.5,0.98772194]
[1646964218451,1.9477515,2567.8,2567.5,0.00212194]
[1646964218690,1.9477515,2567.8,2567.6,0.9856]
[1646964219193,0.19393037,2567.7,2567.6,0.9856]
[1646964219793,1.9477515,2567.8,2567.6,0.9856]
[1646964221097,1.9477515,2567.8,2567.2,2.9856]
[1646964221298,1.9477515,2567.8,2567.6,0.00212163]
[1646964221499,1.9477515,2567.8,2567.2,2.9856]
[1646964221698,3.5,2567.7,2567.2,1.9856]
[1646964221897,3.8,2567.7,2567.2,1.9856]
[1646964222098,0.462,2567.6,2567.2,1.0]
[1646964222549,1.9479655,2567.5,2567.2,1.0]
[1646964222746,0.462,2567.4,2567.2,1.0]
[1646964223254,0.05333764,2567.3,2567.2,1.0]
[1646964223454,0.05333764,2567.3,2566.7,1.0]
[1646964223654,0.462,2567.2,2566.6,0.9856]
[1646964223855,6.55378094,2567.1,2566.1,22.57806014]
[1646964224059,3.0,2566.9,2565.8,1.0]
[1646964224256,0.98807355,2566.6,2565.8,1.0]
[1646964224557,0.462,2566.5,2565.8,1.0]
[1646964224753,0.462,2566.5,2565.0,22.96756014]
[1646964224754,3.5,2566.4,2565.0,22.96756014]
[1646964224954,0.51881319,2566.3,2565.0,22.57806014]
[1646964225160,3.05955847,2566.1,2564.6,0.40705852]
[1646964225357,3.05955847,2566.1,2564.9,1.07891643]
[1646964225358,1.13850672,2565.8,2564.9,1.07891643]
[1646964225560,0.462,2565.7,2564.9,1.07891643]
[1646964225956,0.05218251,2565.6,2564.9,1.07891643]
[1646964226397,0.05218251,2565.6,2565.2,0.00259613]
[1646964226599,0.05218251,2565.6,2565.3,0.87901758]
[1646964226798,1.02680251,2565.6,2565.3,0.87901758]
[1646964226999,0.9745969,2565.4,2565.3,0.87901758]
[1646964227200,0.9745969,2565.4,2565.3,0.1672]
[1646964231145,1.02267677,2565.4,2565.3,0.1672]
[1646964231947,0.9745969,2565.4,2565.3,0.1672]
[1646964232147,0.9745969,2565.4,2565.3,1.09609721]
[1646964232346,0.9745969,2565.4,2565.3,2.09609721]
[1646964232547,0.9745969,2565.4,2565.3,2.39609721]
[1646964233446,0.9745969,2565.4,2565.3,2.34609721]
[1646964234297,0.9745969,2565.4,2565.3,1.34609721]
[1646964234694,0.9745969,2565.4,2565.3,1.17889721]
[1646964235093,1.9492269,2565.4,2565.2,0.16818964]
[1646964235494,1.9492269,2565.4,2565.2,0.1656]
[1646964235694,4.8731034,2565.4,2565.2,0.16802783]
[1646964235997,4.8731034,2565.4,2565.3,0.1656]
[1646964237200,3.8984734,2565.4,2565.3,0.1656]
[1646964243893,3.8984734,2565.4,2565.3,0.0656]
[1646964244294,3.8984734,2565.4,2565.2,0.00212987]
[1646964244498,4.8731934,2565.4,2565.2,0.00212987]
[1646964245048,4.8731934,2565.4,2564.9,2.05643203]
[1646964245450,4.8731934,2565.4,2565.2,0.00212991]
[1646964246251,4.8731934,2565.4,2564.9,3.64363203]
[1646964246452,4.8731934,2565.4,2565.2,0.00211045]
[1646964247454,4.8731934,2565.4,2564.9,2.64363203]
[1646964247654,4.8731934,2565.4,2565.2,0.00211045]
[1646964248707,4.4747397,2565.3,2564.9,0.5872]
[1646964248900,0.9747397,2565.3,2564.9,0.5872]
[1646964249299,0.462,2565.2,2564.9,0.5872]
[1646964249500,1.1402431,2565.1,2564.9,0.5872]
[1646964249706,0.9750954,2564.7,2563.9,0.88320677]
[1646964249900,3.5,2564.6,2563.5,2.85658379]
[1646964250104,3.8,2564.6,2563.5,0.06818379]
[1646964250304,3.5,2564.6,2563.5,0.06818379]
[1646964250504,3.5,2564.6,2563.4,1.20423293]
[1646964250505,3.0,2564.3,2563.4,1.20423293]
[1646964250704,3.0,2564.3,2563.1,0.25]
[1646964250705,1.97282368,2563.9,2563.1,0.25]
[1646964250903,3.5,2563.8,2562.9,0.07102608]
[1646964251703,1.04263332,2563.5,2562.9,0.07102608]
[1646964251904,1.04263332,2563.5,2563.1,1.0]
[1646964252206,2.92627,2563.7,2563.1,1.0]
[1646964252653,2.92627,2563.7,2563.2,0.00256531]
[1646964252856,0.975422,2563.4,2563.2,0.00256531]
[1646964253053,1.950772,2563.4,2563.2,0.00256531]
[1646964253655,1.950772,2563.4,2563.1,1.0]
[1646964253855,1.950772,2563.4,2563.2,0.00256531]
[1646964254861,1.950772,2563.4,2563.1,2.0]
[1646964255057,1.950772,2563.4,2563.2,0.00256531]
[1646964255759,1.950772,2563.4,2563.3,1.01107008]
[1646964255959,2.92636,2564.1,2563.3,1.01107008]
[1646964255960,1.9501366,2563.8,2563.3,1.01107008]
[1646964256197,4.1166,2564.7,2563.4,0.07809093]
[1646964256398,4.1166,2564.7,2563.4,26.15615107]
[1646964256599,4.1166,2564.7,2563.9,1.0]
[1646964256797,2.9251795,2564.5,2563.9,1.81772933]
[1646964256998,2.9251795,2564.5,2563.9,1.0]
[1646964257199,1.9500289,2564.3,2563.7,2.0]
[1646964257402,1.9500289,2564.3,2563.7,1.0]
[1646964257603,1.9500289,2564.3,2564.1,0.00230797]
[1646964257803,0.462,2564.2,2563.7,0.00923326]
[1646964258003,4.3633215,2564.2,2563.7,0.00923326]
[1646964258405,4.3633215,2564.2,2563.3,0.90039637]
[1646964258406,5.2635199,2564.2,2563.3,0.90039637]
[1646964258606,0.05020686,2564.0,2563.3,0.90039637]
[1646964258804,0.05892036,2563.8,2563.3,0.90039637]
[1646964259005,0.9753138,2563.7,2563.3,0.90039637]
[1646964260445,0.06015614,2563.6,2563.3,0.90039637]
[1646964260641,0.06015614,2563.6,2563.3,1.90039637]
[1646964261042,0.06015614,2563.6,2563.3,1.90295576]
[1646964261243,0.06015614,2563.6,2563.4,0.00700595]
[1646964262246,0.06015614,2563.6,2563.4,0.00956529]
[1646964263145,0.06015614,2563.6,2563.4,0.00700595]
[1646964263445,0.06015614,2563.6,2563.4,0.00956529]
[1646964263891,0.9753138,2563.7,2563.4,0.00956529]
[1646964264092,0.9753138,2563.7,2563.4,1.00956529]
[1646964264490,0.9753138,2563.7,2563.4,4.50700595]
[1646964264690,0.9753138,2563.7,2563.5,22.57806014]
[1646964264891,0.9753138,2563.7,2563.5,22.87806014]
[1646964265093,0.9753138,2563.7,2563.5,23.87806014]
[1646964265290,0.9753138,2563.7,2563.6,3.5]
[1646964265690,0.9753138,2563.7,2563.6,4.5]
[1646964265892,0.97495,2564.0,2563.6,3.5]
[1646964265893,0.9749256,2563.9,2563.6,3.5]
[1646964266092,0.9749256,2563.9,2563.6,4.5]
[1646964266295,0.9749256,2563.9,2563.7,0.85410904]
[1646964267095,0.9749256,2563.9,2563.7,1.85641217]
[1646964267541,0.9749256,2563.9,2563.7,2.83133217]
[1646964267742,0.9749256,2563.9,2563.7,3.83133217]
[1646964268139,0.9749256,2563.9,2563.7,3.82902904]
[1646964268342,0.9749256,2563.9,2563.8,3.5]
[1646964268543,0.9748458,2564.1,2563.9,0.06372147]
[1646964268744,0.9748458,2564.1,2563.9,1.03855147]
[1646964268943,0.9748458,2564.1,2564.0,0.06818647]
[1646964269543,1.9496916,2564.3,2564.1,1.09340561]
[1646964269744,1.9496916,2564.3,2564.2,22.57806014]
[1646964270143,1.9496916,2564.3,2564.2,23.57806014]
[1646964270350,1.94962,2564.5,2564.2,23.57806014]
[1646964270549,0.97477,2564.5,2564.2,23.57806014]
[1646964271047,0.97477,2564.5,2564.3,2.0]
[1646964271299,2.0017074,2564.9,2564.3,2.0]
[1646964271501,8.95797,2565.7,2564.4,38.44773011]
[1646964271502,1.9493048,2564.8,2564.4,38.44773011]
[1646964271697,1.9493048,2564.8,2564.5,0.81937839]
[1646964271897,1.9493048,2564.8,2564.6,1.0]
[1646964272596,0.974663,2564.7,2564.6,1.0]
[1646964273000,0.974663,2564.7,2564.4,39.38282925]
[1646964273199,1.949623,2564.7,2564.4,39.38282925]
[1646964273798,0.06122299,2564.5,2564.4,39.38282925]
[1646964274400,0.06122299,2564.5,2564.1,1.25]
[1646964274401,1.03629359,2564.5,2564.1,1.25]
[1646964274599,1.03629359,2564.5,2564.1,0.25]
[1646964274800,0.0546964,2564.4,2564.1,0.25]
[1646964276244,0.04788822,2564.3,2564.1,0.25]
[1646964276443,0.05345292,2564.2,2564.1,0.25]
[1646964277342,0.05345292,2564.2,2564.1,1.25]
[1646964277544,0.05345292,2564.2,2564.1,2.22486]
[1646964278545,0.97493,2564.4,2564.1,2.22486]
[1646964278799,0.97472,2564.7,2564.3,0.9747]
[1646964279001,0.97472,2564.7,2564.3,2.054]
[1646964279198,2.4848854,2565.3,2564.4,0.0831214]
[1646964279399,2.4848854,2565.3,2564.4,38.46595065]
[1646964279701,0.97461,2565.0,2564.6,0.25]
[1646964280501,0.97461,2565.0,2564.6,1.22463]
[1646964280705,0.97461,2565.0,2564.9,1.0]
[1646964280899,0.97461,2565.0,2564.9,23.57806014]
[1646964281200,3.89805,2565.5,2565.0,0.07252921]
[1646964281399,1.94899,2565.5,2565.0,4.54692921]
[1646964281803,1.94899,2565.5,2565.3,1.0]
[1646964282200,1.9488544,2565.4,2565.3,1.90167267]
[1646964282444,1.7988544,2565.4,2565.3,1.90167267]
[1646964282844,1.94879,2565.8,2565.3,1.90167267]
[1646964282845,1.94879,2565.8,2565.3,5.40167267]
[1646964283047,1.94879,2565.8,2565.4,3.56885118]
[1646964283250,0.00350572,2566.1,2565.6,1.0]
[1646964283449,0.00350572,2566.1,2565.6,1.4448]
[1646964283648,0.00350572,2566.1,2565.7,0.1948]
[1646964283849,0.04940158,2566.5,2565.9,0.97408]
[1646964283850,1.99750158,2566.5,2565.9,0.97408]
[1646964284053,3.89719,2566.9,2566.0,41.88282925]
[1646964284054,1.03e-06,2566.1,2566.0,41.88282925]
[1646964284250,1.03e-06,2566.1,2566.0,42.32762925]
[1646964284448,1.03e-06,2566.1,2566.0,44.58072925]
[1646964284649,1.03e-06,2566.1,2566.0,97.07221984]
[1646964284848,0.97385,2566.8,2566.0,97.07221984]
[1646964285054,0.97385,2566.8,2566.2,0.97386]
[1646964285248,0.97385,2566.8,2566.3,0.1948]
[1646964285449,0.97385,2566.8,2566.3,0.94926096]
[1646964285450,1.94772,2566.8,2566.3,0.94926096]
[1646964285752,1.94772,2566.8,2566.7,0.96437835]
[1646964285950,0.97376,2567.1,2566.7,62.96966774]
[1646964286205,7.34216316,2567.4,2566.7,25.16973846]
[1646964286394,7.33,2567.4,2567.3,1.0]
[1646964286598,7.33,2567.4,2567.3,2.7129]
[1646964286795,7.33,2567.4,2567.3,3.7129]
[1646964286997,7.33,2567.4,2567.3,4.84430582]
[1646964287200,7.33,2567.4,2567.3,43.22713507]
[1646964287397,7.33,2567.4,2567.3,44.20073507]
[1646964287996,7.33,2567.4,2567.3,99.19222566]
[1646964288400,7.33,2567.4,2567.3,99.38692566]
[1646964288799,7.33,2567.4,2567.3,65.09229521]
[1646964290049,7.33,2567.4,2567.3,97.50572566]
[1646964290744,0.00376774,2567.5,2567.3,97.50572566]
[1646964290955,9.27682,2568.1,2567.3,96.50572566]
[1646964291146,8.30341,2568.1,2568.0,0.95755245]
[1646964291350,8.30341,2568.1,2568.0,61.91844184]
[1646964291351,0.97341,2568.1,2568.0,61.91844184]
[1646964291548,0.97333,2568.2,2568.0,61.91844184]
[1646964291751,1.94642,2568.4,2568.0,62.91844184]
[1646964291948,1.94642,2568.4,2568.0,64.21844184]
[1646964292150,0.97332,2568.3,2568.0,63.21844184]
[1646964292348,0.97332,2568.3,2568.0,2.25755245]
[1646964292549,0.97332,2568.3,2567.8,0.25]
[1646964292550,0.97706186,2568.3,2568.1,22.57806014]
[1646964292749,0.97706186,2568.3,2568.2,62.42983524]
[1646964292750,0.00374186,2568.3,2568.2,62.42983524]
[1646964293151,0.00374186,2568.3,2568.2,64.42983524]
[1646964293557,7.33,2568.5,2568.2,65.42983524]
[1646964293795,0.00365504,2568.4,2568.3,1.12489215]
[1646964293994,0.00365504,2568.4,2568.3,4.62489215]
[1646964294394,0.00365504,2568.4,2568.3,5.62489215]
[1646964294595,7.33,2568.5,2568.3,6.62489215]
[1646964294796,7.33365501,2568.5,2568.4,1.0]
[1646964294995,0.00365501,2568.5,2568.4,27.07806014]
[1646964295198,0.00365501,2568.5,2568.4,129.61815571]
[1646964295199,5.501e-05,2568.5,2568.4,129.61815571]
[1646964295396,0.98755785,2568.9,2568.4,129.61815571]
[1646964295597,0.01461785,2568.9,2568.6,1.04855401]
[1646964295898,7.33,2569.2,2568.8,3.03010705]
[1646964296100,7.33,2569.2,2568.9,3.5]
[1646964296303,7.33,2569.2,2569.0,85.00789538]
[1646964296903,7.33,2569.2,2569.0,86.00789538]
[1646964297103,8.30286,2569.2,2569.0,86.00789538]
[1646964297303,0.97288743,2569.3,2569.2,5.25929686]
[1646964297554,8.743e-05,2569.3,2569.2,9.03445197]
[1646964297753,8.743e-05,2569.3,2569.2,10.00201816]
[1646964297953,9.89856765,2569.7,2569.2,42.41544861]
[1646964297954,7.33,2569.7,2569.2,42.41544861]
[1646964298158,0.97281,2569.5,2569.3,0.08775369]
[1646964298353,0.97281,2569.5,2569.1,1.0]
[1646964298354,0.9729649,2569.4,2569.1,1.0]
[1646964298558,1.9459649,2569.4,2569.1,1.0]
[1646964298758,1.9459649,2569.4,2569.0,0.55]
[1646964299055,1.9459649,2569.4,2569.1,1.09756523]
[1646964299656,0.00361315,2569.3,2569.1,1.09756523]
[1646964300255,0.00361315,2569.3,2569.0,2.55]
[1646964300460,0.04983318,2569.1,2568.4,0.1945]
[1646964300660,0.04983318,2569.1,2568.3,11.63]
[1646964300661,2.1442549,2568.6,2568.3,11.63]
[1646964300959,2.1442549,2568.6,2568.2,22.8664599]
[1646964300960,0.05432255,2568.5,2568.2,22.8664599]
[1646964301206,0.05432255,2568.5,2568.2,23.8664599]
[1646964301207,1.22532255,2568.5,2568.2,23.8664599]
[1646964301600,1.22532255,2568.5,2568.2,22.8664599]
[1646964301601,1.171,2568.4,2568.2,22.8664599]
[1646964301801,2.14421,2568.4,2568.2,22.8664599]
[1646964302199,2.14421,2568.4,2568.2,23.8664599]
[1646964302601,2.14421,2568.4,2568.2,24.8664599]
[1646964303602,2.14421,2568.4,2568.2,25.8664599]
[1646964304304,2.14421,2568.4,2568.2,23.8664599]
[1646964305346,2.14421,2568.4,2568.2,2.0]
[1646964305747,2.14421,2568.4,2568.2,1.0]
[1646964306554,0.04462414,2568.3,2568.2,1.0]
[1646964306750,0.04462414,2568.3,2568.1,0.25]
[1646964306952,1.171,2568.2,2568.1,0.25]
[1646964307350,1.171,2568.2,2567.8,2.0]
[1646964307550,1.171,2568.1,2567.8,2.0]
[1646964309807,4.671,2568.1,2567.8,1.0]
[1646964310004,1.171,2567.9,2567.8,1.0]
[1646964310203,2.6067855,2567.9,2567.1,21.8664599]
[1646964310403,1.171,2567.8,2567.1,21.8664599]
[1646964310603,1.171,2567.8,2567.1,23.0611599]
[1646964310803,1.171,2567.8,2567.2,0.85042289]
[1646964311003,1.171,2567.8,2567.2,1.85042289]
[1646964311203,1.171,2567.8,2567.2,0.85042289]
[1646964311404,1.171,2567.8,2567.3,1.0]
[1646964311807,1.171,2567.7,2567.6,1.03210669]
[1646964312205,1.171,2567.7,2567.5,39.38282925]
[1646964312660,1.171,2567.7,2567.6,1.0]
[1646964313060,1.171,2567.7,2567.6,25.04700599]
[1646964313260,1.171,2567.7,2567.6,28.15642128]
[1646964313662,1.171,2567.7,2567.6,50.11102349]
[1646964314059,1.171,2567.7,2567.6,50.30572349]
[1646964315062,1.171,2567.7,2567.6,2.0]
[1646964315265,1.171,2567.7,2567.2,0.08521974]
[1646964315564,1.171,2567.7,2566.9,38.38282925]
[1646964315965,1.171,2567.7,2567.2,1.9625078]
[1646964316206,1.171,2567.7,2567.2,1.9361078]
[1646964316399,1.171,2567.7,2567.4,1.0]
[1646964316601,1.171,2567.7,2567.6,0.1]
[1646964316802,1.171,2567.7,2567.2,56.24239815]
[1646964317400,1.171,2567.7,2567.4,0.97348]
[1646964317600,1.171,2567.7,2567.4,39.35630925]
[1646964317803,1.171,2567.7,2567.5,21.93545581]
[1646964318001,1.171,2567.7,2567.6,0.07780185]
[1646964318204,1.171,2567.7,2567.5,22.64426175]
[1646964318601,1.171,2567.7,2567.6,1.88456396]
[1646964318801,1.171,2567.7,2567.6,2.88456396]
[1646964319202,1.171,2567.7,2567.6,3.88456396]
[1646964319402,1.171,2567.7,2567.6,2.88456396]
[1646964319605,1.171,2567.7,2567.6,3.88456396]
[1646964319804,1.171,2567.7,2567.6,3.0]
[1646964320052,1.22713518,2567.7,2567.6,3.0]
[1646964320254,1.22713518,2567.7,2567.6,2.0]
[1646964320451,1.22713518,2567.7,2567.3,0.1947]
[1646964320651,0.06147741,2567.6,2567.2,23.64426175]
[1646964321055,1.171,2567.7,2567.5,0.901827]
[1646964321255,1.22307911,2567.7,2567.6,1.0]
[1646964321455,1.2231518,2567.7,2567.6,1.0]
[1646964321657,1.2231518,2567.7,2567.6,2.0]
[1646964322058,1.2231518,2567.7,2567.2,23.64426175]
[1646964322261,1.2231518,2567.7,2567.3,1.0]
[1646964322459,1.2231518,2567.7,2567.2,23.46337374]
[1646964322660,1.2231518,2567.7,2567.6,1.0]
[1646964323259,1.2231518,2567.7,2567.5,1.0]
[1646964323260,1.171,2567.7,2567.5,1.0]
[1646964323460,0.06006368,2567.6,2567.5,1.0]